bitfinex/quotes_BTCUSD_20240730
["timestamp","ask_amount","ask_price","bid_price","bid_amount"]
[1722348632977,2.48523904,66388.0,66387.0,9.4e-07]
[1722348633182,2.63593336,66388.0,66387.0,9.4e-07]
[1722348633605,2.64993336,66388.0,66387.0,9.4e-07]
[1722348633779,2.63593336,66388.0,66387.0,9.4e-07]
[1722348633983,2.48523904,66388.0,66387.0,9.4e-07]
[1722348634205,2.58923904,66388.0,66387.0,9.4e-07]
[1722348634475,1.01378004,66388.0,66387.0,9.4e-07]
[1722348634613,0.71252104,66388.0,66387.0,9.4e-07]
[1722348634813,1.01778004,66388.0,66387.0,9.4e-07]
[1722348634967,0.71652104,66388.0,66387.0,9.4e-07]
[1722348635169,0.31526204,66388.0,66387.0,0.14540094]
[1722348635399,0.014,66388.0,66387.0,0.14540094]
[1722348635598,0.014,66388.0,66387.0,0.16144861]
[1722348635844,0.01215577,66388.0,66387.0,0.16144861]
[1722348636220,0.91593581,66388.0,66387.0,0.16144861]
[1722348636428,1.21719481,66388.0,66387.0,0.06520094]
[1722348636665,1.21319481,66388.0,66387.0,0.06520094]
[1722348638241,1.52445381,66388.0,66387.0,9.4e-07]
[1722348638474,1.67789811,66388.0,66387.0,9.4e-07]
[1722348638780,1.68787954,66388.0,66387.0,9.4e-07]
[1722348638996,1.82857386,66388.0,66387.0,9.4e-07]
[1722348639204,2.15983286,66388.0,66387.0,9.4e-07]
[1722348639380,2.46727268,66388.0,66387.0,9.4e-07]
[1722348639581,3.73747268,66388.0,66387.0,9.4e-07]
[1722348640147,3.83456118,66388.0,66387.0,9.4e-07]
[1722348640559,3.84256118,66388.0,66387.0,9.4e-07]
[1722348640841,3.67404695,66388.0,66387.0,9.4e-07]
[1722348641038,3.83485648,66388.0,66387.0,9.4e-07]
[1722348641352,3.84585648,66388.0,66387.0,9.4e-07]
[1722348642238,3.54459748,66388.0,66387.0,9.4e-07]
[1722348642632,3.24333848,66388.0,66387.0,9.4e-07]
[1722348642952,1.97313848,66388.0,66387.0,9.4e-07]
[1722348643379,2.27439748,66388.0,66387.0,9.4e-07]
[1722348643982,2.28228782,66388.0,66387.0,9.4e-07]
[1722348644285,2.12105639,66388.0,66387.0,9.4e-07]
[1722348644519,2.52701317,66388.0,66387.0,9.4e-07]
[1722348644708,2.68871317,66388.0,66387.0,9.4e-07]
[1722348645065,2.98997217,66388.0,66387.0,9.4e-07]
[1722348645266,2.68871317,66388.0,66387.0,9.4e-07]
[1722348645881,2.98997217,66388.0,66387.0,9.4e-07]
[1722348646051,1.93820477,66375.0,66374.0,0.009328]
[1722348646295,2.40993057,66375.0,66374.0,0.009328]
[1722348646836,1.93791825,66375.0,66374.0,0.009328]
[1722348647059,2.25923625,66375.0,66374.0,0.009328]
[1722348647396,2.26030553,66375.0,66374.0,0.009328]
[1722348647855,2.26648668,66375.0,66374.0,0.009328]
[1722348648018,1.96516868,66375.0,66374.0,0.009328]
[1722348648221,2.108863,66375.0,66374.0,0.009328]
[1722348649086,2.088863,66375.0,66374.0,0.009328]
[1722348649517,2.108863,66375.0,66374.0,0.009328]
[1722348649937,2.119863,66375.0,66374.0,0.009328]
[1722348650141,2.108863,66375.0,66374.0,0.009328]
[1722348650345,2.410181,66375.0,66374.0,0.009328]
[1722348650617,2.10947583,66375.0,66374.0,0.009328]
[1722348650760,2.11740589,66375.0,66374.0,0.009328]
[1722348650971,2.42490616,66375.0,66374.0,0.009328]
[1722348651140,2.59841232,66375.0,66374.0,0.009328]
[1722348651356,2.43070368,66375.0,66374.0,0.009328]
[1722348651609,2.26287683,66375.0,66374.0,0.009328]
[1722348651731,1.4469781,66375.0,66374.0,0.073728]
[1722348651938,1.40175273,66375.0,66374.0,0.073728]
[1722348652139,1.39557274,66375.0,66374.0,0.073728]
[1722348652551,1.69689074,66375.0,66374.0,0.073728]
[1722348652756,1.53817778,66375.0,66374.0,0.073728]
[1722348652985,1.37648346,66375.0,66374.0,0.073728]
[1722348653178,1.07516546,66375.0,66374.0,0.073728]
[1722348653376,1.08616546,66375.0,66374.0,0.073728]
[1722348653693,1.38748346,66375.0,66374.0,0.073728]
[1722348653827,1.07516546,66375.0,66374.0,0.073728]
[1722348654000,1.07716546,66375.0,66374.0,0.073728]
[1722348654366,0.67384746,66375.0,66374.0,0.073728]
[1722348654655,0.30944781,66375.0,66374.0,0.073728]
[1722348654863,0.30944781,66375.0,66374.0,0.303289]
[1722348654864,0.00815577,66375.0,66374.0,0.303289]
[1722348654988,0.301273,66385.0,66375.0,0.1453]
[1722348654989,0.00815577,66378.0,66375.0,0.1453]
[1722348655220,0.00815577,66376.0,66375.0,0.1453]
[1722348655628,0.00815577,66376.0,66375.0,0.1468542]
[1722348655825,0.00815577,66377.0,66376.0,0.09174]
[1722348656053,0.48,66387.0,66376.0,0.09174]
[1722348656054,0.00815577,66383.0,66378.0,0.301304]
[1722348656420,0.00815577,66382.0,66381.0,0.0616]
[1722348656797,0.00815577,66382.0,66381.0,0.10668813]
[1722348656798,0.38837409,66382.0,66381.0,0.10668813]
[1722348656828,0.38837409,66382.0,66381.0,0.0631542]
[1722348656829,0.99094609,66382.0,66381.0,0.0631542]
[1722348657407,1.59351809,66382.0,66381.0,0.0616]
[1722348657423,1.06276877,66375.0,66374.0,0.086528]
[1722348657450,1.21340181,66375.0,66374.0,0.086528]
[1722348657820,1.35902199,66375.0,66374.0,0.086528]
[1722348657849,1.21340181,66375.0,66374.0,0.072828]
[1722348658193,1.58498296,66375.0,66374.0,0.072828]
[1722348658759,1.28366496,66375.0,66374.0,0.072828]
[1722348659189,1.68498296,66375.0,66374.0,0.009328]
[1722348659780,1.69498296,66375.0,66374.0,0.009328]
[1722348659986,1.83567728,66375.0,66374.0,0.009328]
[1722348660259,1.83730931,66375.0,66374.0,0.009328]
[1722348660615,1.86730931,66375.0,66374.0,0.009328]
[1722348660824,1.84630931,66375.0,66374.0,0.009328]
[1722348661222,1.87830931,66375.0,66374.0,0.009328]
[1722348661487,1.84830931,66375.0,66374.0,0.009328]
[1722348661702,1.68561499,66375.0,66374.0,0.009328]
[1722348661901,1.69359523,66375.0,66374.0,0.009328]
[1722348662604,2.02491323,66375.0,66374.0,0.009328]
[1722348662881,2.12299569,66375.0,66374.0,0.009328]
[1722348663341,2.09674471,66375.0,66374.0,0.009328]
[1722348663471,2.26743903,66375.0,66374.0,0.009328]
[1722348663623,2.2736195,66375.0,66374.0,0.009328]
[1722348664269,2.2856195,66375.0,66374.0,0.009328]
[1722348665013,2.5869375,66375.0,66374.0,0.009328]
[1722348665152,2.2856195,66375.0,66374.0,0.009328]
[1722348665605,2.11492518,66375.0,66374.0,0.009328]
[1722348666186,1.83360718,66375.0,66374.0,0.009328]
[1722348666384,2.13492518,66375.0,66374.0,0.009328]
[1722348666544,2.12877682,66375.0,66374.0,0.009328]
[1722348666747,2.13495842,66375.0,66374.0,0.009328]
[1722348666950,2.28565274,66375.0,66374.0,0.009328]
[1722348667552,1.96433474,66375.0,66374.0,0.009328]
[1722348668035,1.80364042,66375.0,66374.0,0.009328]
[1722348668197,1.70553872,66375.0,66374.0,0.070228]
[1722348668755,1.69755848,66375.0,66374.0,0.070228]
[1722348668999,1.29624048,66375.0,66374.0,0.070228]
[1722348669222,0.69360448,66375.0,66374.0,0.070228]
[1722348669635,1.29105665,66375.0,66374.0,0.070228]
[1722348669831,0.98973865,66375.0,66374.0,0.070228]
[1722348670040,0.99592229,66375.0,66374.0,0.070228]
[1722348670322,0.02633941,66375.0,66374.0,0.151728]
[1722348670455,0.02015577,66375.0,66374.0,0.151728]
[1722348670658,0.47213277,66375.0,66374.0,0.16516655]
[1722348670865,0.77345077,66375.0,66374.0,0.151728]
[1722348671087,0.76145077,66375.0,66374.0,0.16516655]
[1722348671319,1.06276877,66375.0,66374.0,0.151728]
[1722348671513,0.76245077,66375.0,66374.0,0.151728]
[1722348671719,0.76145077,66375.0,66374.0,0.151728]
[1722348671927,0.46013277,66375.0,66374.0,0.151728]
[1722348672136,0.15981477,66375.0,66374.0,0.151728]
[1722348672349,0.001,66375.0,66374.0,0.603711]
[1722348672552,0.48,66387.0,66375.0,0.150659]
[1722348672553,0.00815577,66383.0,66375.0,0.150659]
[1722348672770,0.00815577,66380.0,66376.0,0.1522102]
[1722348672979,0.00815577,66380.0,66376.0,0.16562579]
[1722348673191,0.301271,66386.0,66377.0,0.142]
[1722348673192,0.00815577,66383.0,66377.0,0.142]
[1722348673460,0.00815577,66381.0,66380.0,0.1469]
[1722348673805,0.00815577,66381.0,66380.0,0.16029594]
[1722348674230,0.00899577,66388.0,66381.0,0.0653]
[1722348674438,0.00815577,66385.0,66384.0,0.1467]
[1722348674633,0.46006377,66385.0,66384.0,0.1467]
[1722348674864,0.46006377,66385.0,66384.0,0.16007628]
[1722348674865,0.00815577,66385.0,66384.0,0.16007628]
[1722348675068,0.00815577,66385.0,66384.0,0.1467]
[1722348675274,0.00899577,66388.0,66387.0,0.150631]
[1722348675485,0.00899577,66388.0,66387.0,0.595694]
[1722348675486,0.00084,66388.0,66387.0,0.595694]
[1722348675712,0.00084,66388.0,66387.0,0.30779255]
[1722348675950,0.00899577,66388.0,66387.0,0.15716155]
[1722348676128,0.15962477,66388.0,66387.0,0.15716155]
[1722348676542,0.00899577,66388.0,66387.0,0.1438]
[1722348676812,0.15962477,66388.0,66387.0,0.1438]
[1722348677011,0.46088377,66388.0,66387.0,0.15711938]
[1722348677209,0.15962477,66388.0,66387.0,0.15711938]
[1722348677641,0.76214277,66388.0,66387.0,0.15711938]
[1722348677844,1.21403481,66388.0,66387.0,0.15711938]
[1722348678083,1.21403481,66388.0,66387.0,0.1438]
[1722348678284,1.21503481,66388.0,66387.0,0.1498]
[1722348678847,1.21403481,66388.0,66387.0,0.1438]
[1722348679020,1.21403481,66388.0,66387.0,0.1508]
[1722348679213,1.21503481,66388.0,66387.0,0.1508]
[1722348679445,1.21403481,66388.0,66387.0,0.1438]
[1722348679618,1.21403481,66388.0,66387.0,0.0656]
[1722348679844,1.21503481,66388.0,66387.0,0.0726]
[1722348680250,0.91377581,66388.0,66387.0,0.0726]
[1722348680743,0.61251681,66388.0,66387.0,0.0726]
[1722348680932,0.91377581,66388.0,66387.0,0.0726]
[1722348681134,0.00999577,66388.0,66387.0,0.0726]
[1722348681338,0.15962477,66388.0,66387.0,0.1476]
[1722348681497,0.46388377,66388.0,66387.0,0.1476]
[1722348681898,0.46088377,66388.0,66387.0,0.1476]
[1722348682098,0.00899577,66388.0,66387.0,0.1476]
[1722348682319,0.00999577,66388.0,66387.0,0.1536]
[1722348682503,0.00999577,66388.0,66387.0,0.15860474]
[1722348682911,0.01099577,66388.0,66387.0,0.16460474]
[1722348683085,0.31025781,66388.0,66387.0,0.15860474]
[1722348683285,0.91277581,66388.0,66387.0,0.15860474]
[1722348683509,0.91277581,66388.0,66387.0,0.07660474]
[1722348683714,1.31284711,66388.0,66387.0,0.0656]
[1722348683899,0.46013277,66375.0,66374.0,0.009328]
[1722348684073,0.00815577,66375.0,66374.0,0.009328]
[1722348684304,0.46013277,66375.0,66374.0,0.16089661]
[1722348684570,0.15881477,66375.0,66374.0,0.16089661]
[1722348684785,0.15881477,66375.0,66374.0,0.149828]
[1722348684786,0.46013277,66375.0,66374.0,0.149828]
[1722348685020,1.06276877,66375.0,66374.0,0.08589661]
[1722348685163,1.21340181,66375.0,66374.0,0.074828]
[1722348685827,0.91208381,66375.0,66374.0,0.074828]
[1722348686460,1.21440181,66375.0,66374.0,0.079828]
[1722348686587,0.91308381,66375.0,66374.0,0.079828]
[1722348686863,1.30571019,66375.0,66374.0,0.079828]
[1722348687723,1.21440181,66375.0,66374.0,0.079828]
[1722348688924,1.21340181,66375.0,66374.0,0.074828]
[1722348689838,0.91208381,66375.0,66374.0,0.076828]
[1722348690042,0.15881477,66375.0,66374.0,0.076828]
[1722348690168,0.15881477,66375.0,66374.0,0.074828]
[1722348690169,0.91208381,66375.0,66374.0,0.074828]
[1722348690368,0.91208381,66375.0,66374.0,0.08589661]
[1722348690572,0.91308381,66375.0,66374.0,0.078828]
[1722348690782,0.76245077,66375.0,66374.0,0.078828]
[1722348691214,0.001,66375.0,66374.0,0.078828]
[1722348691383,0.001,66375.0,66374.0,0.154128]
[1722348691581,0.001,66375.0,66374.0,0.16525844]
[1722348692001,0.001,66375.0,66374.0,0.61724144]
[1722348692373,0.001,66375.0,66374.0,0.31591944]
[1722348692572,0.001,66375.0,66374.0,0.61724144]
[1722348692841,0.00815577,66378.0,66375.0,0.212258]
[1722348693071,0.00815577,66380.0,66377.0,0.150652]
[1722348693300,0.00815577,66381.0,66378.0,0.212251]
[1722348693546,0.150634,66386.0,66380.0,0.0635]
[1722348693547,0.00815577,66383.0,66380.0,0.0635]
[1722348693792,0.00815577,66382.0,66380.0,0.0635]
[1722348694015,0.15880077,66381.0,66380.0,0.0635]
[1722348694516,0.46009177,66381.0,66380.0,0.0635]
[1722348694748,0.15880077,66381.0,66380.0,0.0635]
[1722348695232,0.46009177,66381.0,66380.0,0.0635]
[1722348695719,0.00815577,66381.0,66380.0,0.0635]
[1722348695996,0.00815577,66384.0,66380.0,0.0635]
[1722348696220,0.00084,66388.0,66381.0,0.16974]
[1722348696221,0.00815577,66383.0,66381.0,0.16974]
[1722348696494,0.00815577,66383.0,66381.0,0.320385]
[1722348696678,0.00815577,66383.0,66381.0,0.16974]
[1722348696911,0.302101,66388.0,66381.0,0.16974]
[1722348696912,0.00915577,66382.0,66381.0,0.16974]
[1722348697176,0.001,66382.0,66381.0,0.320385]
[1722348697392,0.00815577,66384.0,66381.0,0.16974]
[1722348697657,0.00815577,66387.0,66383.0,0.03014]
[1722348697885,0.00084,66388.0,66387.0,0.212431]
[1722348697886,0.00899577,66388.0,66387.0,0.212431]
[1722348698136,0.00084,66388.0,66387.0,0.513694]
[1722348698384,0.00084,66388.0,66387.0,0.52557448]
[1722348698620,0.00084,66388.0,66387.0,1.18124048]
[1722348698880,0.00084,66388.0,66387.0,1.25724048]
[1722348699408,0.00815577,66406.0,66401.0,0.1386]
[1722348699639,0.00815577,66406.0,66401.0,0.4398]
[1722348699881,0.00815577,66407.0,66404.0,0.301185]
[1722348700125,0.00815577,66407.0,66403.0,0.0625]
[1722348700126,0.00815577,66407.0,66406.0,0.150588]
[1722348700721,0.00815577,66407.0,66406.0,0.1623275]
[1722348700895,0.00815577,66407.0,66406.0,0.1623255]
[1722348701133,0.00815577,66408.0,66406.0,0.2260275]
[1722348701469,0.00815577,66410.0,66409.0,0.451744]
[1722348701635,0.00815577,66410.0,66409.0,0.150581]
[1722348701851,0.00815577,66408.0,66406.0,0.28862035]
[1722348702101,0.00815577,66408.0,66407.0,0.451759]
[1722348702325,0.301119,66419.0,66408.0,0.150584]
[1722348702326,0.00815577,66409.0,66408.0,0.150584]
[1722348702576,0.00815577,66414.0,66406.0,0.0767]
[1722348702802,0.00815577,66415.0,66414.0,0.15057]
[1722348703027,0.00815577,66416.0,66415.0,0.150568]
[1722348703307,0.301097,66424.0,66414.0,0.0635]
[1722348703308,0.00815577,66415.0,66414.0,0.0635]
[1722348704591,0.00815577,66415.0,66414.0,0.21407]
[1722348704826,0.00815577,66415.0,66414.0,0.515211]
[1722348704998,0.00815577,66415.0,66414.0,0.0635]
[1722348705388,0.15063304,66424.0,66414.0,0.0635]
[1722348705577,0.15063304,66424.0,66415.0,0.0015542]
[1722348705780,0.150555,66421.0,66415.0,0.0015542]
[1722348706587,0.150553,66422.0,66415.0,0.0015542]
[1722348706788,0.150555,66421.0,66415.0,0.0015542]
[1722348706943,0.150553,66422.0,66415.0,0.1521222]
[1722348707154,0.45173004,66424.0,66415.0,0.0015542]
[1722348707155,0.150555,66421.0,66415.0,0.0015542]
[1722348707377,0.150558,66420.0,66415.0,0.0015542]
[1722348707575,0.0752,66418.0,66415.0,0.0015542]
[1722348707818,0.752932,66407.0,66406.0,0.014]
[1722348708046,1.20473804,66407.0,66406.0,0.014]
[1722348708307,0.75301,66400.0,66399.0,0.0644]
[1722348708492,0.150602,66400.0,66399.0,0.0644]
[1722348708746,0.451806,66400.0,66399.0,0.0644]
[1722348708958,0.150602,66400.0,66399.0,0.0644]
[1722348709171,0.75301,66400.0,66399.0,0.0644]
[1722348709585,0.451806,66400.0,66399.0,0.0644]
[1722348709787,0.75301,66400.0,66399.0,0.0644]
[1722348710006,0.301195,66403.0,66399.0,0.0644]
[1722348710181,0.150602,66400.0,66399.0,0.0644]
[1722348710596,0.15063304,66407.0,66399.0,0.0644]
[1722348710804,0.44444115,66415.0,66399.0,0.0644]
[1722348710805,0.44444115,66415.0,66399.0,0.07408363]
[1722348711009,0.150584,66408.0,66401.0,0.150599]
[1722348711214,0.44444115,66413.0,66400.0,0.00967872]
[1722348711427,0.150594,66404.0,66402.0,0.0096689]
[1722348711630,0.301174,66407.0,66402.0,0.0096689]
[1722348711840,0.150591,66405.0,66401.0,0.0015542]
[1722348712048,0.15059,66406.0,66403.0,0.00966399]
[1722348712188,0.15059,66406.0,66401.0,0.0015542]
[1722348712394,0.15059,66406.0,66404.0,0.00965908]
[1722348712395,0.150588,66406.0,66404.0,0.00965908]
[1722348712594,0.150588,66406.0,66401.0,0.03014]
[1722348712800,0.150585,66408.0,66405.0,0.00965417]
[1722348713003,0.30116,66410.0,66405.0,0.00965417]
[1722348713221,0.301088,66426.0,66406.0,0.11525177]
[1722348713421,0.150553,66422.0,66416.0,0.0639]
[1722348713625,0.150561,66419.0,66416.0,0.0639]
[1722348713824,0.44444115,66431.0,66417.0,0.0015542]
[1722348714178,0.150544,66426.0,66421.0,0.0821]
[1722348714312,0.7228,66441.0,66422.0,0.0316942]
[1722348714313,0.301056,66433.0,66422.0,0.0316942]
[1722348714511,0.07534716,66440.0,66423.0,0.0639]
[1722348714730,0.150523,66435.0,66428.0,0.150537]
[1722348714951,0.150516,66438.0,66430.0,0.150533]
[1722348715171,0.301028,66439.0,66431.0,0.07342186]
[1722348715376,0.150519,66437.0,66431.0,0.07342186]
[1722348715585,0.07534716,66440.0,66431.0,0.07342186]
[1722348715586,0.150516,66438.0,66431.0,0.07342186]
[1722348715795,0.301019,66441.0,66432.0,0.0832]
[1722348716000,0.46014004,66442.0,66432.0,0.09271695]
[1722348716216,0.309507,66442.0,66432.0,0.09572737]
[1722348716419,0.00849,66442.0,66432.0,0.09572737]
[1722348716636,0.158998,66442.0,66434.0,0.150524]
[1722348716814,0.158998,66442.0,66433.0,0.16001832]
[1722348716815,0.150509,66441.0,66433.0,0.16001832]
[1722348717110,0.00849,66442.0,66435.0,0.00948351]
[1722348717404,0.00849,66442.0,66439.0,0.03014]
[1722348717734,0.00849,66442.0,66441.0,0.150509]
[1722348717992,0.00849,66442.0,66440.0,0.00945899]
[1722348718174,0.00849,66442.0,66441.0,0.15996308]
[1722348718301,0.00849,66442.0,66441.0,0.46098108]
[1722348718480,0.00849,66442.0,66441.0,0.54376368]
[1722348718703,0.00849,66442.0,66441.0,0.56676368]
[1722348718886,0.00849,66442.0,66441.0,0.71066368]
[1722348719091,0.00849,66442.0,66441.0,1.16231472]
[1722348719288,0.00849,66442.0,66441.0,1.49347272]
[1722348719710,0.00849,66442.0,66441.0,1.19245472]
[1722348720385,0.00849,66442.0,66441.0,0.95903908]
[1722348720516,0.00849,66442.0,66441.0,0.20649408]
[1722348720720,0.00849,66442.0,66441.0,0.65802108]
[1722348720922,0.00849,66442.0,66441.0,0.35700308]
[1722348721343,0.00849,66442.0,66441.0,0.65802108]
[1722348721917,0.00849,66442.0,66441.0,1.05574249]
[1722348722455,0.00849,66442.0,66441.0,0.95903908]
[1722348723285,0.00849,66442.0,66441.0,1.41069012]
[1722348723544,0.00849,66442.0,66441.0,1.52069012]
[1722348724191,0.00849,66442.0,66441.0,1.82170812]
[1722348724414,0.00848,66454.0,66448.0,0.01]
[1722348724566,0.00848,66454.0,66453.0,1.222114]
[1722348724740,0.00848,66454.0,66453.0,1.38498961]
[1722348724942,0.00848,66454.0,66453.0,1.3942659]
[1722348725426,0.00848,66454.0,66453.0,0.65246229]
[1722348725642,0.00848,66454.0,66453.0,0.20101629]
[1722348725882,0.00948,66454.0,66453.0,0.09961629]
[1722348726760,0.00948,66454.0,66453.0,0.03941629]
[1722348727171,0.15996,66454.0,66449.0,0.03014]
[1722348727343,0.00948,66454.0,66449.0,0.2845332]
[1722348727565,0.15996,66454.0,66450.0,0.0092793]
[1722348727766,0.15996,66454.0,66450.0,0.0394193]
[1722348727987,0.15896,66454.0,66450.0,0.0394193]
[1722348728190,0.451459,66451.0,66450.0,0.0394193]
[1722348728737,0.150483,66453.0,66447.0,0.03014]
[1722348729136,0.00948,66454.0,66453.0,0.04414]
[1722348729342,0.00948,66454.0,66453.0,0.56029543]
[1722348729343,0.00848,66454.0,66453.0,0.56029543]
[1722348729547,0.00848,66454.0,66453.0,0.95581698]
[1722348729978,0.00848,66454.0,66453.0,1.25678098]
[1722348730820,0.00848,66454.0,66453.0,0.35388898]
[1722348731097,0.00848,66454.0,66453.0,0.00926698]
[1722348731264,0.00848,66454.0,66451.0,0.03014]
[1722348731465,0.158961,66454.0,66453.0,0.00920161]
[1722348731670,0.00848,66454.0,66450.0,0.150487]
[1722348731868,0.00848,66454.0,66453.0,0.15968361]
[1722348732073,0.00948,66454.0,66453.0,0.465446]
[1722348732299,0.00948,66454.0,66453.0,0.80162099]
[1722348732503,0.00848,66454.0,66453.0,1.15488499]
[1722348732721,0.00848,66454.0,66453.0,1.61848203]
[1722348732922,0.00948,66454.0,66453.0,1.70287265]
[1722348733207,0.00948,66454.0,66453.0,1.88370697]
[1722348733323,0.00948,66454.0,66453.0,2.00570697]
[1722348733525,0.00948,66454.0,66453.0,1.68274297]
[1722348733742,0.00948,66454.0,66453.0,1.70474297]
[1722348733985,0.00948,66454.0,66453.0,1.70274297]
[1722348734392,0.00848,66454.0,66453.0,1.69074297]
[1722348734589,0.00083,66456.0,66455.0,1.147882]
[1722348734791,0.00083,66456.0,66455.0,1.38111686]
[1722348735000,0.00083,66456.0,66455.0,1.39030866]
[1722348735172,0.00083,66456.0,66455.0,1.69126366]
[1722348735832,0.00083,66456.0,66455.0,1.70126366]
[1722348736043,0.00183,66456.0,66455.0,1.71526366]
[1722348736614,0.00183,66456.0,66455.0,1.40430866]
[1722348736798,0.00183,66456.0,66455.0,0.8931188]
[1722348737144,0.00183,66456.0,66455.0,1.34470684]
[1722348737942,0.00083,66456.0,66455.0,1.33070684]
[1722348738149,0.00183,66456.0,66455.0,1.34470684]
[1722348738899,0.00183,66456.0,66455.0,1.47670684]
[1722348739063,0.00183,66456.0,66455.0,1.56615905]
[1722348739277,0.00083,66456.0,66455.0,1.55133256]
[1722348739503,0.00183,66456.0,66455.0,1.56533256]
[1722348739722,0.00183,66456.0,66455.0,1.86628756]
[1722348739925,0.00183,66456.0,66455.0,1.56533256]
[1722348740145,0.00083,66456.0,66455.0,1.54251799]
[1722348740345,0.00083,66456.0,66455.0,1.54133256]
[1722348740978,0.452256,66456.0,66455.0,0.0393318]
[1722348741185,0.452256,66456.0,66455.0,0.0091918]
[1722348741394,0.00083,66456.0,66450.0,0.00300948]
[1722348741623,0.00083,66456.0,66455.0,0.014]
[1722348741624,0.00183,66456.0,66455.0,0.014]
[1722348741845,0.00183,66456.0,66455.0,1.09128064]
[1722348741846,0.00083,66456.0,66455.0,1.09128064]
[1722348742039,0.00083,66456.0,66455.0,1.05385968]
[1722348742254,0.00083,66456.0,66455.0,1.38495468]
[1722348742743,0.00183,66456.0,66455.0,1.39895468]
[1722348743098,0.00183,66456.0,66455.0,1.56951166]
[1722348743506,0.00183,66456.0,66455.0,1.12099968]
[1722348743718,0.152305,66456.0,66455.0,0.11597964]
[1722348743939,0.152305,66456.0,66455.0,0.02313964]
[1722348744162,0.453256,66456.0,66455.0,0.02313964]
[1722348744361,0.453256,66456.0,66455.0,0.014]
[1722348744568,0.00183,66456.0,66455.0,0.014]
[1722348744805,0.00183,66456.0,66455.0,0.50471134]
[1722348744987,0.00183,66456.0,66455.0,0.55563882]
[1722348745420,0.00183,66456.0,66455.0,0.20375634]
[1722348745620,0.00183,66456.0,66455.0,0.07627934]
[1722348745828,0.00183,66456.0,66455.0,0.07783354]
[1722348746075,0.00183,66456.0,66455.0,0.02469354]
[1722348746076,0.152305,66456.0,66455.0,0.02469354]
[1722348746269,0.453256,66456.0,66455.0,0.02313934]
[1722348746503,0.830507,66456.0,66455.0,0.014]
[1722348746706,0.529556,66456.0,66455.0,0.014]
[1722348747954,0.07813,66456.0,66455.0,0.014]
[1722348748165,0.07813,66456.0,66455.0,0.04414]
[1722348748573,0.07813,66456.0,66455.0,0.05328515]
[1722348749199,0.529556,66456.0,66455.0,0.05419815]
[1722348749417,0.228605,66456.0,66455.0,0.02405815]
[1722348749605,0.00183,66456.0,66455.0,0.045053]
[1722348750028,0.00183,66456.0,66455.0,0.05575332]
[1722348750265,0.453256,66456.0,66455.0,0.02561332]
[1722348750459,0.453256,66456.0,66455.0,0.05419912]
[1722348750460,0.00183,66456.0,66455.0,0.05419912]
[1722348750666,0.152305,66456.0,66455.0,0.045053]
[1722348750881,0.453256,66456.0,66455.0,0.05422355]
[1722348751329,0.453256,66456.0,66455.0,0.045053]
[1722348751562,0.151305,66456.0,66455.0,0.000913]
[1722348752036,0.452256,66456.0,66455.0,0.000913]
[1722348752268,0.151305,66456.0,66455.0,0.031053]
[1722348752496,0.00083,66456.0,66455.0,0.031053]
[1722348752728,0.00083,66456.0,66455.0,0.04022516]
[1722348752954,0.152305,66456.0,66455.0,0.05422516]
[1722348753178,0.453256,66456.0,66455.0,0.05422516]
[1722348753405,0.452256,66456.0,66455.0,0.000913]
[1722348753681,0.453256,66456.0,66455.0,0.045053]
[1722348754150,0.00183,66456.0,66455.0,0.045053]
[1722348754414,0.152305,66456.0,66455.0,0.045053]
[1722348754603,0.152305,66456.0,66455.0,0.0542256]
[1722348755054,0.00183,66456.0,66455.0,0.0542256]
[1722348755986,0.00183,66456.0,66455.0,0.55939067]
[1722348756242,0.00183,66456.0,66455.0,1.39462432]
[1722348756893,0.00183,66456.0,66455.0,1.82065003]
[1722348757052,0.00183,66456.0,66455.0,1.83065003]
[1722348757409,0.00183,66456.0,66455.0,1.93065003]
[1722348757442,0.00183,66456.0,66455.0,1.95265003]
[1722348757640,0.00183,66456.0,66455.0,2.20367064]
[1722348757816,0.00183,66456.0,66455.0,1.93887064]
[1722348758028,0.00183,66456.0,66455.0,1.95887064]
[1722348758508,0.00848,66470.0,66468.0,1.221876]
[1722348758734,0.00848,66470.0,66468.0,1.52064103]
[1722348758949,0.00848,66470.0,66468.0,1.40576265]
[1722348759174,0.00848,66470.0,66468.0,1.68143866]
[1722348759391,0.00848,66470.0,66468.0,1.98233466]
[1722348759596,0.00848,66470.0,66468.0,2.02727426]
[1722348759808,0.00848,66470.0,66468.0,1.98233466]
[1722348760037,0.00848,66470.0,66468.0,2.02731135]
[1722348760249,0.00848,66470.0,66468.0,2.11433466]
[1722348760497,0.00848,66470.0,66468.0,2.22680071]
[1722348760673,0.00848,66470.0,66468.0,2.09233466]
[1722348760879,0.00848,66470.0,66468.0,2.11233466]
[1722348761087,0.00848,66470.0,66468.0,2.22680075]
[1722348761317,0.00848,66470.0,66468.0,2.11433466]
[1722348761563,0.00848,66470.0,66468.0,2.20479505]
[1722348761948,0.00848,66470.0,66468.0,1.60774434]
[1722348762164,0.00848,66470.0,66468.0,1.35183521]
[1722348762370,0.00848,66470.0,66468.0,1.22679224]
[1722348762590,0.00848,66470.0,66468.0,1.24079224]
[1722348763209,0.00848,66470.0,66468.0,1.16559224]
[1722348763421,0.00848,66470.0,66468.0,0.05433233]
[1722348763644,0.00848,66470.0,66468.0,0.05734106]
[1722348763880,0.00848,66470.0,66468.0,0.50868506]
[1722348764094,0.00848,66470.0,66468.0,0.80958106]
[1722348764318,0.00848,66470.0,66468.0,0.49468506]
[1722348764524,0.00848,66470.0,66468.0,0.91305977]
[1722348765149,0.00848,66470.0,66468.0,0.06333233]
[1722348765353,0.00848,66470.0,66468.0,0.07733233]
[1722348765568,0.158936,66469.0,66468.0,0.04033233]
[1722348765792,0.459828,66469.0,66468.0,0.04033233]
[1722348765991,0.150463,66462.0,66458.0,0.03014]
[1722348766207,0.446882,66469.0,66458.0,0.03014]
[1722348766208,0.150458,66464.0,66458.0,0.03014]
[1722348766426,0.14599,66469.0,66455.0,0.35259068]
[1722348766427,0.150464,66461.0,66460.0,0.03014]
[1722348766850,0.14599,66469.0,66460.0,0.03014]
[1722348767066,0.14599,66469.0,66460.0,0.0403545]
[1722348767290,0.531592,66461.0,66460.0,0.0102145]
[1722348767717,0.230664,66461.0,66457.0,0.03014]
[1722348767932,0.0802,66461.0,66458.0,0.03014]
[1722348768156,0.0802,66461.0,66458.0,0.04038111]